Cogmind - Beta 17 @@@ ROGUE MODE // 2026.06.26 @ 01:10:41 Player: LN-5RVR Result: Destroyed by H-61 Shepherd with Heavy Assault Cannon Performance ------------- Evolutions (2) 1000 Regions Visited (5) 1000 Robots Destroyed (26) 130 Value Destroyed (593) 593 Prototype IDs (24) 480 Alien Tech Used (0) 0 Bonus (300) 300 TOTAL SCORE: 3503 Bonus ------- Aligned with FarCom 300 Cogmind --------- Core Integrity 0/550 Matter 182/300 Energy 88/100 System Corruption 7% Temperature Cool (0) Movement Core (150) Ox2 Location -8/Materials Parts ------- > --- POWER (1) -------- (None) > --- PROPULSION (2) --- (None) > --- UTILITY (6) ------ Structural Scanner Modified TNC > --- WEAPON (2) ------- Field Lobotomy Kit > --- INVENTORY (5) ---- Light Ion Engine Titanium Leg Light Armor Plating Hammer Peak State ------------ > --- POWER ------------ (None) > --- PROPULSION ------- (None) > --- UTILITY ---------- Structural Scanner Advanced Visual Processing Unit Modified TNC > --- WEAPON ----------- Field Lobotomy Kit > --- INVENTORY -------- Light Ion Engine Titanium Leg Light Armor Plating Hammer [Rating: 20] Favorites ----------- Power Ion Engine Engine Ion Engine Propulsion Aluminum Leg Leg Aluminum Leg Hover Unit Hover Unit Flight Unit Flight Unit Utility Small Storage Unit Device Structural Scanner Storage Small Storage Unit Processor Modified TNC Weapon Hammer Energy Gun Small Laser Ballistic Gun Assault Rifle Ballistic Cannon Slug Cannon Launcher Rocket Launcher Special Weapon Field Lobotomy Kit Impact Weapon Hammer Build | -11 -10 -10 -10 -9 -8 ------- Run | Yrd Mat Min Exi Min Mat Slots Evolved 4 | . . . . . 4 Power . | . . . . . . Propulsion . | . . . . . . Utility 4 | . . . . . 4 Weapon . | . . . . . . Parts Attached 21 | 7 3 1 1 3 6 Power 1 | 1 . . . . . Engine 1 | 1 . . . . . Core . | . . . . . . Reactor . | . . . . . . Propulsion 7 | 2 2 . . 2 1 Treads . | . . . . . . Leg 4 | 2 . . . 2 . Wheel . | . . . . . . Hover 2 | . 2 . . . . Flight 1 | . . . . . 1 Utility 4 | 1 . 1 . . 2 Device 1 | . . 1 . . . Storage 1 | 1 . . . . . Processor 2 | . . . . . 2 Hackware . | . . . . . . Protection . | . . . . . . Artifact . | . . . . . . Weapon 9 | 3 1 . 1 1 3 Energy Gun 2 | 2 . . . . . Energy Cannon . | . . . . . . Ballistic Gun 2 | 1 . . . . 1 Ballistic Cannon 1 | . . . . . 1 Launcher 1 | . . . . 1 . Special Weapon 1 | . . . 1 . . Impact Weapon 2 | . 1 . . . 1 Slashing Weapon . | . . . . . . Piercing Weapon . | . . . . . . Special Melee Weapon . | . . . . . . Unidentified Prototypes 2 | . . . 1 . 1 Corrupted Parts 1 | . . . . 1 . System Corruption 5 | . . . . 5 . Parts Lost 12 | . . 2 . 1 9 Power 1 | . . . . . 1 Propulsion 6 | . . 2 . 1 3 Utility 2 | . . . . . 2 Weapon 3 | . . . . . 3 Highest Loss Streak 4 | . . 2 . 1 4 To Critical Strikes 1 | . . . . . 1 Average Backups 6 | . 2 6 6 7 6 Power . | . 1 1 1 1 1 Propulsion 2 | . 1 3 2 2 1 Utility 1 | . . 1 1 2 1 Weapon 1 | . . 1 2 1 1 Tool/Special . | . . . . . . Unused Backups 6 | . . . . 1 5 Power 1 | . . . . . 1 Propulsion 3 | . . . . 1 2 Utility 1 | . . . . . 1 Weapon 1 | . . . . . 1 Tool/Special . | . . . . . . Average Slot Usage (%) 73 | . 81 57 97 89 45 Engine 12 | . 14 14 14 14 6 Leg 19 | . 21 10 28 27 11 Hover 1 | . 6 1 . . . Device 8 | . . 2 14 14 9 Storage 12 | . 14 14 14 14 7 Special Weapon 3 | . . . 11 3 . Impact Weapon 11 | . 2 14 14 14 5 Peak Build Rating 20 | 6 6 7 17 17 20 Average Rating 9 | 4 5 4 15 10 8 On Entrance 7 | . 6 5 7 17 8 Avg Prop Armor Cover (%) . | . . . . . . Naked Turns . | . . . . . . Heaviest Build 21 | 13 13 13 21 21 18 Greatest Support 20 | 20 20 20 20 20 20 Greatest Overweight (x) 3 | . . 3 1 2 2 Average Overweight (x) . | . . 1 . . . Largest Inventory Capacity 8 | 8 8 8 8 8 8 Average Capacity 7 | 6 8 8 8 8 7 Most Carried 8 | 1 7 8 8 8 8 Average Carried 6 | . 2 6 6 7 6 Final Capacity 8 | 8 8 8 8 8 5 Final Carried 8 | 1 7 6 7 8 4 Class Distribution -------------------- 98% | Mutant Dominant Class ---------------- Mutant | -10/Materials Mutant | -10/Mines Mutant | -10/Exiles Mutant | -9/Mines Mutant | -8/Materials Resources | -11 -10 -10 -10 -9 -8 ----------- Run | Yrd Mat Min Exi Min Mat Matter Collected 540 | 152 182 30 10 80 86 Remotely . | . . . . . . Salvage Created 797 | . 137 242 . 239 179 Parts 45 | . 8 12 . 11 14 Haulers Intercepted 2 | . 1 . . . 1 Recyclers Shooed . | . . . . . . Parts Field Recycled . | . . . . . . Retrieved Matter . | . . . . . . Parts Self-Destructed . | . . . . . . Prevented . | . . . . . . Parts Restored . | . . . . . . Kills | -11 -10 -10 -10 -9 -8 ------- Run | Yrd Mat Min Exi Min Mat Combat Hostiles Destroyed 14 | . 2 3 . 6 3 Melee 3 | . . 1 . 1 1 Guns 2 | . 2 . . . . Cannons 1 | . . . . . 1 AOE 3 | . . . . 3 . Classes Destroyed 9 | . 3 4 . . 2 Builder 3 | . . 2 . . 1 Tunneler 3 | . . 1 . 2 . Hauler 2 | . 1 . . . 1 Recycler 2 | . . 2 . . . Watcher 2 | . 1 . . . 1 Swarmer 3 | . . 3 . . . Cutter 1 | . . . . . 1 Grunt 9 | . 2 . . 6 1 Hunter 1 | . . . . . 1 Best Kill Streak 5 | . 2 5 . 5 2 Combat Bots Only 3 | . 1 3 . 3 1 Max Kills in Single Turn 2 | . 1 1 . 2 1 Gunslinging . | . . . . . . Exploded 1 | . . . . 1 . Melee 1 | . . 1 . 1 1 Uniques/NPCs Destroyed . | . . . . . . Combat | -11 -10 -10 -10 -9 -8 -------- Run | Yrd Mat Min Exi Min Mat Hostile Shots Fired 104 | . 20 11 . 29 44 Missed 32 | . 3 3 . 9 17 Hits 72 | . 17 8 . 20 27 Melee 3 | . . . . . 3 Projectile 69 | . 17 8 . 20 24 AOE 4 | . . . . . 4 Critical Strikes 6 | . 2 . . . 4 Part Disruptions 1 | . . . . . 1 Damage Taken 1704 | . 244 66 . 237 1157 Core 718 | . 72 17 . 43 586 Absorbed by Shields . | . . . . . . Core Remaining (%) 73 | 100 . . . 47 . Volleys Fired 39 | . 11 . . 4 24 Largest 2 | . 2 . . 1 1 Hottest 60 | . 60 . . 33 40 Shots Fired 51 | . 22 . . 4 25 Gun 22 | . 22 . . . . Cannon 21 | . . . . . 21 Launcher 7 | . . . . 4 3 Special 1 | . . . . . 1 Kinetic 32 | . 11 . . . 21 Thermal 11 | . 11 . . . . Explosive 7 | . . . . 4 3 Electromagnetic . | . . . . . . Robot Hit Streak 8 | . 8 . . 1 3 Robot Miss Streak 7 | . 2 . . 3 7 Penetration Max . | . . . . . . Secondary Targets . | . . . . . . Shots Hit Robots 47 | . 16 10 . 8 13 Core Hits 22 | . 8 3 . 8 3 Critical Kills 1 | . . 1 . . . Critical Parts Destroyed 5 | . . 1 . 2 2 Critical Strikes 6 | . . 2 . 2 2 Destroy 1 | . . . . . 1 Smash 5 | . . 2 . 2 1 Melee Attacks 44 | . 1 13 . 8 22 Impact 44 | . 1 13 . 8 22 Slashing . | . . . . . . Piercing . | . . . . . . Sneak Attacks 8 | . 1 5 . 1 1 Combat Hostiles 1 | . . . . 1 . Follow-up Attacks . | . . . . . . Damage Inflicted 1383 | . 246 408 . 362 367 Guns 197 | . 197 . . . . Cannons 215 | . . . . . 215 Explosions 200 | . . . . 200 . Melee 763 | . 41 408 . 162 152 Ramming 8 | . 8 . . . . Kinetic 303 | . 88 . . . 215 Thermal 109 | . 109 . . . . Explosive 200 | . . . . 200 . Electromagnetic . | . . . . . . Impact 763 | . 41 408 . 162 152 Slashing . | . . . . . . Piercing . | . . . . . . Highest Corruption 7 | . . . . 5 7 Average Corruption 4 | . . . . 5 2 Corruption Purged . | . . . . . . Corruption Blocked . | . . . . . . Effects 14 | . . . . 8 6 Message Errors 5 | . . . . 2 3 Matter Fused 1 | . . . . 1 . Heat Flow Errors 2 | . . . . 2 . Energy Discharges 3 | . . . . 2 1 Data Loss (major) 1 | . . . . . 1 Misfires 1 | . . . . . 1 Alerts 1 | . . . . 1 . Overload Shots . | . . . . . . Overflow Damage 252 | . . 106 . 53 93 Projectiles . | . . . . . . Explosions 16 | . . . . . 16 Melee 236 | . . 106 . 53 77 Knockbacks 9 | . . 2 . . 7 Impact 4 | . . 2 . . 2 Kinetic 5 | . . . . . 5 Secondary . | . . . . . . Self-Inflicted Damage 207 | . . . . 13 194 Shots 6 | . . . . 1 5 Rammed . | . . . . . . Targets Rammed 2 | . 2 . . . . Kicked 2 | . 2 . . . . Crushed . | . . . . . . Highest Temperature 134 | . 120 . . 134 13 Average Temperature 52 | . 53 . . 58 5 Received Heat Transfer 378 | . 177 . . 123 78 Siege Activations . | . . . . . . Martial Activations . | . . . . . . Shielding Activations . | . . . . . . Robots Disrupted . | . . . . . . Combat Hostiles . | . . . . . . Robots Corrupted 9 | . . 4 . 2 3 Combat Hostiles 5 | . . 2 . 2 1 Parts Fried 14 | . . 9 . 2 3 Impact Corruptions 14 | . . 6 . 4 4 Robots Melted . | . . . . . . Combat Hostiles . | . . . . . . Parts Melted . | . . . . . . Heat Transferred 250 | . 250 . . . . Parts Sabotaged . | . . . . . . Parts Stolen . | . . . . . . Parts Stripped . | . . . . . . Power Chain Reactions 1 | . . . . . 1 Alert | -11 -10 -10 -10 -9 -8 ------- Run | Yrd Mat Min Exi Min Mat Maximum Alert Level . | . . . . . . Low Security (%) 100 | 100 100 100 . 100 100 Level 1 . | . . . . . . Level 2 . | . . . . . . Level 3 . | . . . . . . Level 4 . | . . . . . . Level 5 . | . . . . . . High Security . | . . . . . . Max Security . | . . . . . . Peak Influence 102 | . 37 40 . 102 66 Initial . | . . . . . . Average 10 | . 7 2 . 23 11 Influence Increases 533 | . 64 95 . 172 202 Destroy 0b10 Robot/C 280 | . 40 60 . 120 60 Destroy 0b10 Robot/NC 60 | . 10 25 . 10 15 Destroy Leader 58 | . 14 10 . 20 14 Successful Hack 18 | . . . . . 18 Disable Machine 60 | . . . . . 60 Destroy Structure 42 | . . . . 22 20 Lose Combat Pursuer 15 | . . . . . 15 Influence Decreases 487 | . 64 95 . 172 156 Time Decay 397 | . 64 75 . 162 96 Lost Part 90 | . . 20 . 10 60 Squads Dispatched 3 | . 1 . . . 2 Investigation . | . . . . . . Extermination . | . . . . . . Reinforcement 3 | . 1 . . . 2 Assault . | . . . . . . Garrison . | . . . . . . Intercept . | . . . . . . Searches Triggered . | . . . . . . Construction Impeded . | . . . . . . Haulers Reinforced . | . . . . . . Active Scanning Responses . | . . . . . . Cargo Convoy Interrupts . | . . . . . . Stealth | -11 -10 -10 -10 -9 -8 --------- Run | Yrd Mat Min Exi Min Mat Distress Signals 1 | . . . . . 1 Communications Jammed . | . . . . . . Distress Signals . | . . . . . . Times Spotted 23 | . 5 3 . 6 9 Peak Tracking Total 4 | . 3 3 . 3 4 Tactical Retreats 1 | . . . . . 1 Traps | -11 -10 -10 -10 -9 -8 ------- Run | Yrd Mat Min Exi Min Mat Traps Triggered . | . . . . . . Indirectly . | . . . . . . Trap Hack Attempts . | . . . . . . Triggered . | . . . . . . Disarmed . | . . . . . . Reprogrammed . | . . . . . . Reused . | . . . . . . Traps Extracted . | . . . . . . Installed . | . . . . . . Triggered . | . . . . . . Machines | -11 -10 -10 -10 -9 -8 ---------- Run | Yrd Mat Min Exi Min Mat Machines Disabled 4 | . . . . . 4 Max in Single Turn 2 | . . . . . 2 Machines Repaired . | . . . . . . Machines Dismantled . | . . . . . . Machines Sabotaged . | . . . . . . Overloaded Fab Kills . | . . . . . . Hacking | -11 -10 -10 -10 -9 -8 --------- Run | Yrd Mat Min Exi Min Mat Machines Accessed 5 | . 2 . 1 . 2 Terminals 2 | . 1 . . . 1 Fabricators . | . . . . . . Repair Stations . | . . . . . . Recycling Units 1 | . 1 . . . . Scanalyzers 1 | . . . . . 1 Garrison Access . | . . . . . . Total Hacks 9 | . 5 . 1 . 3 Successful 7 | . 4 . 1 . 2 Failed 2 | . 1 . . . 1 Catastrophic . | . . . . . . Database Lockouts . | . . . . . . Manual 6 | . 3 . 1 . 2 Terminals 5 | . 3 . . . 2 Fabricators . | . . . . . . Repair Stations . | . . . . . . Recycling Units 2 | . 2 . . . . Scanalyzers 1 | . . . . . 1 Garrison Access . | . . . . . . Terminal Hacks 4 | . 2 . 1 . 1 Branch Access Points 2 | . 1 . . . 1 Zone Layout 1 | . 1 . . . . Proto ID Catalog 1 | . . . 1 . . Fabricator Hacks . | . . . . . . Repair Station Hacks . | . . . . . . Recycling Unit Hacks 2 | . 2 . . . . Report Inventory 1 | . 1 . . . . Retrieve Components 1 | . 1 . . . . Scanalyzer 1 | . . . . . 1 Retrieve Study 1 | . . . . . 1 Garrison Access Hacks . | . . . . . . Unauthorized Hacks . | . . . . . . Terminals . | . . . . . . Fabricators . | . . . . . . Repair Stations . | . . . . . . Recycling Units . | . . . . . . Scanalyzers . | . . . . . . Garrison Access . | . . . . . . Data Cores Recovered . | . . . . . . Used . | . . . . . . Hacking Detections 1 | . . . . . 1 Full Trace Events . | . . . . . . Feedback Events . | . . . . . . Feedback Blocked . | . . . . . . Robot Schematics Acquired . | . . . . . . Robots Built . | . . . . . . Authchips . | . . . . . . Time . | . . . . . . Total Robot Build Rating . | . . . . . . Part Schematics Acquired . | . . . . . . Parts Built . | . . . . . . Authchips . | . . . . . . Time . | . . . . . . Total Part Build Rating . | . . . . . . Part Studies Acquired 1 | . . . . . 1 Parts Repaired . | . . . . . . Time . | . . . . . . Parts Recycled . | . . . . . . Recycled Matter . | . . . . . . Retrieved Matter . | . . . . . . Retrieved Components 7 | . 7 . . . . Parts Scanalyzed . | . . . . . . Part Schematics Acquired . | . . . . . . Parts Damaged . | . . . . . . Bothacking | -11 -10 -10 -10 -9 -8 ------------ Run | Yrd Mat Min Exi Min Mat Used RIF Installer . | . . . . . . Robots Hacked . | . . . . . . Non-combat . | . . . . . . Combat . | . . . . . . Robot Hacks Applied . | . . . . . . Relay Couplers Released . | . . . . . . Fabnet Peak Effective % . | . . . . . . Robots Rewired . | . . . . . . Allies Hacked . | . . . . . . Hacks Repelled . | . . . . . . Allies | -11 -10 -10 -10 -9 -8 -------- Run | Yrd Mat Min Exi Min Mat Total Allies 1 | . . . . . 1 Largest Group 1 | . . . . . 1 Highest-Rated Group 22 | . . . . . 22 Highest-Rated Ally 22 | . . . . . 22 Total Orders . | . . . . . . Ally Attacks . | . . . . . . Total Damage . | . . . . . . Kills . | . . . . . . Allies Corrupted . | . . . . . . Allies Melted . | . . . . . . Field Lobotomies 1 | . . . . . 1 Intel | -11 -10 -10 -10 -9 -8 ------- Run | Yrd Mat Min Exi Min Mat Active Infowar (turns) 2293 | . . 173 943 561 616 Optics 13 | . . . . . 13 Structural 2293 | . . 173 943 561 616 T.N.C. 99 | . . . . . 99 Robot Analysis Total . | . . . . . . Derelict Logs Recovered 1 | . . 1 . . . Drone Launches . | . . . . . . Drone Recoveries . | . . . . . . Exploration | -11 -10 -10 -10 -9 -8 ------------- Run | Yrd Mat Min Exi Min Mat Turns Passed 3539 | 50 308 1061 943 561 616 Spaces Moved 2169 | 36 268 549 549 396 371 Core 283 | 6 . 270 . . 7 Treads . | . . . . . . Legs 1537 | 30 155 198 549 396 209 Wheels . | . . . . . . Hover 194 | . 113 81 . . . Flight 155 | . . . . . 155 Fastest Speed 40 | 50 56 56 120 120 40 Average Speed 134 | 108 93 149 171 131 90 Slowest Speed 260 | 120 120 200 190 260 190 Overloaded Moves . | . . . . . . Propulsion Burnouts . | . . . . . . Robots Hopped . | . . . . . . Potential Cave-ins 7 | . . . . . 7 Cave-ins Triggered 3 | . . . . . 3 Exploration Rate (%) 52 | 3 46 90 81 68 24 Regions Visited 5 Branch Regions 3 Pre-discovered Areas 1 | . . 1 . . . Known Exits Taken 1 | . 1 . . . . Unknown Exits Taken 4 | 1 . 1 1 1 . Scrap Searched 3 | . . 2 . 1 . Spaces Dug 52 | . . . . . 52 Terrain Destroyed 95 | . . . . 32 63 Melee 7 | . . . . . 7 Projectile 9 | . . . . . 9 AOE 79 | . . . . 32 47 Terrain Rammed . | . . . . . . Walls Destroyed . | . . . . . . Machines Disabled . | . . . . . . Actions | -11 -10 -10 -10 -9 -8 --------- Run | Yrd Mat Min Exi Min Mat Total 2668 | 44 303 764 551 419 587 Wait 366 | . 8 197 . 5 156 Move 2163 | 35 267 548 548 395 370 Hop . | . . . . . . Pick Up 16 | 1 6 2 2 1 4 Fast Attach 12 | 7 . 1 . 2 2 Attach 12 | . 3 2 1 . 6 Detach 4 | . 3 . . 1 . Swap 2 | . 1 . . 1 . Drop 7 | 1 1 1 . 2 2 Fire 39 | . 11 . . 4 24 Melee 44 | . 1 13 . 8 22 Ram . | . . . . . . Kick 2 | . 2 . . . . Crush . | . . . . . . Escape Stasis 1 | . . . . . 1 Rewire . | . . . . . . Trap . | . . . . . . Miscellaneous . | . . . . . . Route ------- -11/Scrapyard -10/Materials -10/Mines (discovered 2 exits: [*Mat] / *Exi) -10/Exiles -9/Mines -8/Materials (discovered 3 exits: [*Fac x2] / Sto) History --------- Turn | Location | Event 3 | -11/Scrapyard | Discovered new exit (range 15) 51 | -11/Scrapyard | Entered Materials 52 | -10/Materials | Met a group of wandering Federalists 60 | -10/Materials | Identified exit to Mines 315 | -10/Materials | Build established: Mutant 359 | -10/Materials | Entered Mines 561 | -10/Mines | Discovered new exit (range 16) 929 | -10/Mines | Received a Rocket Launcher from a helpful Derelict 999 | -10/Mines | A weapon hastily lodged in a ceiling crevice suddenly fell to the ground 1415 | -10/Mines | Deemed a non-threat by the Exiles lab entrance 1415 | -10/Mines | Discovered new exit (range 5) 1420 | -10/Mines | Entered Exiles 1440 | -10/Exiles | Discovered new exit (range 15) 1470 | -10/Exiles | Met 8R-AWN 1490 | -10/Exiles | Met EX-HEX 1524 | -10/Exiles | Met EX-BIN 1538 | -10/Exiles | Aligned with FarCom system 1539 | -10/Exiles | Given EX-Vault access code 1585 | -10/Exiles | Opened EX-Vault 1592 | -10/Exiles | Found Prototype Processor 1595 | -10/Exiles | Found Prototype Special Weapon 1596 | -10/Exiles | Identified Field Lobotomy Kit 1601 | -10/Exiles | Identified Modified TNC 1649 | -10/Exiles | Warned to stay clear of 0b10 Research branches 1708 | -10/Exiles | Met EX-DEC 1872 | -10/Exiles | Visited The Gauntlet 2363 | -10/Exiles | Stole two prototypes: Modified TNC, Field Lobotomy Kit 2363 | -10/Exiles | Entered Mines 2386 | -9/Mines | Core integrity fell below 50% 2851 | -9/Mines | Discovered new exit (range 8) 2924 | -9/Mines | Entered Materials 2924 | -8/Materials | Evolved 4 slots: Utility x4 3154 | -8/Materials | Crushed by falling debris 3219 | -8/Materials | Crushed by falling debris 3233 | -8/Materials | Crushed by falling debris 3257 | -8/Materials | Lost 3 parts (1n2w) 3257 | -8/Materials | Identified exit to Storage 3416 | -8/Materials | Core integrity fell below 50% 3463 | -8/Materials | Lost 4 parts (1p1n1u1w) 3495 | -8/Materials | Discovered new exit (range 15) 3526 | -8/Materials | Discovered new exit (range 10) 3537 | -8/Materials | Core integrity fell below 20% 3539 | -8/Materials | Assimilated C-17 Slicer with FLK Orb 3540 | -8/Materials | Destroyed by H-61 Shepherd with Heavy Assault Cannon Last Messages --------------- corruption (+4). 03512_ Dropped Faulty Imp. Assault Rifle. 03523_ ALERT: Suspicious intruders detected, dispatching Cutter reinforcements to area. 03524_ T-07 Excavator is excavating. 03526_ K-01 Serf cleans the Pressure Siphon. 03526_ EXIT=FOUND 03527_ Slug penetrates Wall. 03527_ Acquired Adv. Visual Processing Unit. 03527_ Knocked back. 03528_ T-07 Excavator is excavating. 03535_ C-17 Slicer destroyed. 03535_ Hammer+ severed. 03538_ Penetrated by Slug. 03538_ Flight Unit destroyed. 03539_ The unstable cave ceiling collapses. 03539_ C-17 Slicer assimilated. 03540_ Penetrated by Slug. 03540_ Adv. Visual Processing Unit destroyed. 03540_ Critical hit (Blast). Map ----- +----------------------------------------------------+ | ????????????????? # ########????????????????? | | ????????????????? ########## ##????????????????? | | ????????????????? # # < ##????????????????? | | ????????????????? # # ##????????????????? | | ????????????????? # # ##????????????????? | | ????????????????? # # ##????????????????? | | ????????????????? # " ###???????????????? | | ????????????????? + " #######???????????? | | ????????????????? # # ######???????????? | | ????????????????? # # ##"""####### ###??? | | ????????????????????? #"T"########## ??? | | ?????????????????????###+## "?? | | ?????????????????????## [ "?? | | ?????????????????????## #######????? | | ?????????????????????## """" ## ????? | | ??????????a???????##### """" ## ????????? | | ??????????????????##### """" # ????????? | | ?????????Y???????? # + ????????? | | ????????????????????? # # ????????? | | ????????????????????? # ##### ## ????????? | | ????????????????????? u ######### ## ????????? | | ????????????????????? # #######???###?????????? | | ????????????????????? # ##????????????????????? | | ????????????????????? # =a##??#####?????????????? | | ?????????????? # c%/#Y??#####?????????????? | | ??????????????#########u @u# ##? ## ## | | ??????????????## # m/ # """ """ ##?##/####+## | | ?????????????? # # % # """ """ ##?## #### | | ?????????????? # # # """ """ ##?## + | | ?????????????? # "" + # """ """ ##?####### %" | | ?????????????? # S"" # # ##?####### | | ?????????????? # "" # #= ??????????##! " | | ?????????????? ######## # ########## | | ??????????????######## ###+################### | | ????????????????????## | | ????????????????????## | | ????????????????????## """ | | ????????????????????## """"" ################## | | ????????????????????## """"" ################## | | ????????????????????## """"" # ######### | | ????????????????? #### """[ # ######### | | ????????????????? #### ![ [= # ### | | ?????????????????##""" [[[ # ## # | | ?????????????????##"R + # # | | ?????????????????##""" # ## # # | | ?????????????????##### // # % ### | | ?????????????????##### / #* ### | | ????????????????????## # | ######### | | ????????????????????## ################## | | ????????????????????## # ##??????? | +----------------------------------------------------+ Best States ------------- Heat Dissipation 31 Energy Generation 10 Energy Capacity 250 Matter Stores 300 Matter Capacity 300 Sight Range 20 Terrain Scan Density 10 Evasion (%) 62 Item Schematics ----------------- None Robot Schematics ------------------ None Fabricated ------------ Nothing Repaired ---------- Nothing Studied --------- Hammer | -8/Materials | Hacked Alien Tech Used ----------------- None Achievements -------------- None Challenges ------------ None Game ------ Seed FrostSurveybotStatue Manual? 0 Play Time 00:24:17 Cumulative 40.7 hours Start 2026.06.26 @ 00:39:59 End 2026.06.26 @ 01:10:41 Sessions 1 Manual Loads 0 Difficulty Rogue Special Mode None Game No. 57 Rogue 25 Adventurer 32 Explorer 0 Win Type - Total 0 Types 0/0/0/0/0/0/0/0/0/0 Lore% 15 Gallery% 22 Achievement% 16 Wizard Run 0 Options --------- Layout 1 ASCII 0 Keyboard 0 Movement Numpad Keybinds 0 Fullscreen 1 Font 24/Smallcaps Map View 50x35 Zoom Use 0% Tactical HUD 1 Map Filters NONE Filters NONE Steam 1 RUN: 14ee078e-e69d-4550-aa24-c43f6dc20b19